[Event "Titled Tuesday Blitz July 05 Late 2022"]
[White "Wieczorek, Oskar"]
[Black "Matsuura, Frederico"]
[WhiteFideId "1133950"]
[BlackFideId "2107848"]
[WhiteElo "2330"]
[BlackElo "2302"]
[Result "1-0"]
[Round "10"]
[TimeControl "180+1"]
[Date "2022.07.05"]
[WhiteClock "0:00:02"]
[BlackClock "0:00:10"]

1. e4 {[%clk 0:03:00]}  e6 {[%clk 0:02:57]} 2. d4 {[%clk 0:02:52]}  d5 {[%clk 0:02:56]} 3. Nd2 {[%clk 0:02:49]}  c5 {[%clk 0:02:55]} 4. exd5 {[%clk 0:02:38]}  exd5 {[%clk 0:02:54]} 5. Ngf3 {[%clk 0:02:38]}  Nc6 {[%clk 0:02:54]} 6. Bb5 {[%clk 0:02:33]}  Bd6 {[%clk 0:02:54]} 7. dxc5 {[%clk 0:02:30]}  Bxc5 {[%clk 0:02:54]} 8. O-O {[%clk 0:02:31]}  Ne7 {[%clk 0:02:53]} 9. Nb3 {[%clk 0:02:31]}  Bd6 {[%clk 0:02:52]} 10. c3 {[%clk 0:02:31]}  O-O {[%clk 0:02:50]} 11. Bg5 {[%clk 0:02:31]}  Qb6 {[%clk 0:02:45]} 12. Bxc6 {[%clk 0:02:09]}  bxc6 {[%clk 0:02:39]} 13. c4 {[%clk 0:02:09]}  Bg4 {[%clk 0:02:21]} 14. Bxe7 {[%clk 0:01:54]}  Bxe7 {[%clk 0:02:20]} 15. cxd5 {[%clk 0:01:55]}  cxd5 {[%clk 0:02:19]} 16. Qxd5 {[%clk 0:01:53]}  Be6 {[%clk 0:02:07]} 17. Qd4 {[%clk 0:01:49]}  Bf6 {[%clk 0:02:04]} 18. Qxb6 {[%clk 0:01:47]}  axb6 {[%clk 0:02:04]} 19. Nbd4 {[%clk 0:01:42]}  Bxa2 {[%clk 0:01:58]} 20. b3 {[%clk 0:01:31]}  Rfd8 {[%clk 0:01:48]} 21. Rad1 {[%clk 0:01:10]}  Rd5 {[%clk 0:01:02]} 22. Rd2 {[%clk 0:00:43]}  g6 {[%clk 0:00:58]} 23. g4 {[%clk 0:00:23]}  h6 {[%clk 0:00:54]} 24. h4 {[%clk 0:00:21]}  Ra3 {[%clk 0:00:35]} 25. Ra1 {[%clk 0:00:16]}  Rda5 {[%clk 0:00:35]} 26. g5 {[%clk 0:00:11]}  hxg5 {[%clk 0:00:34]} 27. hxg5 {[%clk 0:00:12]}  Bxd4 {[%clk 0:00:32]} 28. Nxd4 {[%clk 0:00:12]}  Rxg5+ {[%clk 0:00:28]} 29. Kh2 {[%clk 0:00:11]}  Rga5 {[%clk 0:00:29]} 30. Rb2 {[%clk 0:00:05]}  b5 {[%clk 0:00:28]} 31. Nc2 {[%clk 0:00:03]}  Bxb3 {[%clk 0:00:12]} 32. Rxa3 {[%clk 0:00:03]}  Ba4 {[%clk 0:00:10]} 33. Nd4 {[%clk 0:00:02]} 1-0


[Site "https://www.chess.com"]

[Event "Titled Tuesday Blitz July 05 Late 2022"]
[White "Zakarian, David"]
[Black "Baches Garcia, Guillermo"]
[WhiteFideId "13301276"]
[BlackFideId "2209764"]
[WhiteElo "2418"]
[BlackElo "2511"]
[Result "1/2-1/2"]
[Round "10"]
[TimeControl "180+1"]
[Date "2022.07.06"]
[WhiteClock "0:00:11"]
[BlackClock "0:00:05"]

1. e4 {[%clk 0:03:00]}  c5 {[%clk 0:03:00]} 2. Nf3 {[%clk 0:03:00]}  d6 {[%clk 0:03:00]} 3. Bb5+ {[%clk 0:03:00]}  Bd7 {[%clk 0:03:00]} 4. Bxd7+ {[%clk 0:03:01]}  Qxd7 {[%clk 0:03:01]} 5. O-O {[%clk 0:03:00]}  Nf6 {[%clk 0:03:01]} 6. e5 {[%clk 0:03:00]}  dxe5 {[%clk 0:03:02]} 7. Nxe5 {[%clk 0:03:01]}  Qc8 {[%clk 0:03:02]} 8. a4 {[%clk 0:02:59]}  e6 {[%clk 0:03:02]} 9. Ra3 {[%clk 0:02:57]}  Be7 {[%clk 0:03:00]} 10. Rg3 {[%clk 0:02:54]}  O-O {[%clk 0:02:56]} 11. d3 {[%clk 0:02:49]}  Kh8 {[%clk 0:02:41]} 12. Qf3 {[%clk 0:02:40]}  Nc6 {[%clk 0:02:24]} 13. Nxc6 {[%clk 0:02:38]}  Qxc6 {[%clk 0:02:23]} 14. Qxc6 {[%clk 0:02:38]}  bxc6 {[%clk 0:02:24]} 15. Bg5 {[%clk 0:02:26]}  c4 {[%clk 0:01:42]} 16. Nd2 {[%clk 0:02:04]}  cxd3 {[%clk 0:01:40]} 17. Rxd3 {[%clk 0:02:05]}  Rfd8 {[%clk 0:01:37]} 18. Rxd8+ {[%clk 0:01:47]}  Rxd8 {[%clk 0:01:36]} 19. Nc4 {[%clk 0:01:48]}  h6 {[%clk 0:01:22]} 20. Be3 {[%clk 0:01:40]}  Nd5 {[%clk 0:01:18]} 21. Bd2 {[%clk 0:01:18]}  Nb6 {[%clk 0:01:10]} 22. Ba5 {[%clk 0:00:58]}  Nxc4 {[%clk 0:01:03]} 23. Bxd8 {[%clk 0:00:59]}  Bxd8 {[%clk 0:01:03]} 24. Rd1 {[%clk 0:00:59]}  Bb6 {[%clk 0:00:58]} 25. b3 {[%clk 0:00:54]}  Ne5 {[%clk 0:00:54]} 26. h3 {[%clk 0:00:51]}  Kg8 {[%clk 0:00:49]} 27. Kf1 {[%clk 0:00:52]}  Kf8 {[%clk 0:00:48]} 28. f4 {[%clk 0:00:52]}  Ng6 {[%clk 0:00:47]} 29. g3 {[%clk 0:00:52]}  Ke7 {[%clk 0:00:46]} 30. b4 {[%clk 0:00:53]}  f5 {[%clk 0:00:40]} 31. a5 {[%clk 0:00:52]}  Bc7 {[%clk 0:00:39]} 32. Ke2 {[%clk 0:00:49]}  e5 {[%clk 0:00:39]} 33. fxe5 {[%clk 0:00:48]}  Nxe5 {[%clk 0:00:39]} 34. Rf1 {[%clk 0:00:40]}  Ke6 {[%clk 0:00:38]} 35. Ke3 {[%clk 0:00:36]}  g5 {[%clk 0:00:37]} 36. Kd4 {[%clk 0:00:35]}  Nd7 {[%clk 0:00:33]} 37. Re1+ {[%clk 0:00:31]}  Be5+ {[%clk 0:00:33]} 38. Kc4 {[%clk 0:00:30]}  Kd6 {[%clk 0:00:33]} 39. Rd1+ {[%clk 0:00:28]}  Kc7 {[%clk 0:00:33]} 40. Rd3 {[%clk 0:00:29]}  h5 {[%clk 0:00:29]} 41. Rf3 {[%clk 0:00:29]}  f4 {[%clk 0:00:29]} 42. gxf4 {[%clk 0:00:28]}  Bxf4 {[%clk 0:00:28]} 43. Rf1 {[%clk 0:00:26]}  Bd6 {[%clk 0:00:24]} 44. c3 {[%clk 0:00:26]}  g4 {[%clk 0:00:24]} 45. hxg4 {[%clk 0:00:25]}  hxg4 {[%clk 0:00:25]} 46. Rf7 {[%clk 0:00:25]}  Be5 {[%clk 0:00:20]} 47. Rf5 {[%clk 0:00:21]}  g3 {[%clk 0:00:19]} 48. Rg5 {[%clk 0:00:21]}  Kd6 {[%clk 0:00:19]} 49. Kd3 {[%clk 0:00:21]}  Ke6 {[%clk 0:00:19]} 50. c4 {[%clk 0:00:18]}  Kf6 {[%clk 0:00:15]} 51. Rg8 {[%clk 0:00:19]}  Kf5 {[%clk 0:00:14]} 52. Ke2 {[%clk 0:00:18]}  Nf6 {[%clk 0:00:14]} 53. Rc8 {[%clk 0:00:16]}  Bd4 {[%clk 0:00:10]} 54. Kf3 {[%clk 0:00:16]}  Bf2 {[%clk 0:00:08]} 55. Rxc6 {[%clk 0:00:15]}  Nd7 {[%clk 0:00:08]} 56. Rc7 {[%clk 0:00:13]}  Ne5+ {[%clk 0:00:07]} 57. Kg2 {[%clk 0:00:14]}  Ke4 {[%clk 0:00:08]} 58. Rg7 {[%clk 0:00:14]}  Kd4 {[%clk 0:00:07]} 59. c5 {[%clk 0:00:14]}  Kc4 {[%clk 0:00:05]} 60. Rg5 {[%clk 0:00:14]}  Nc6 {[%clk 0:00:04]} 61. Rg6 {[%clk 0:00:14]}  Kb5 {[%clk 0:00:05]} 62. a6 {[%clk 0:00:14]}  Nxb4 {[%clk 0:00:05]} 63. Rg7 {[%clk 0:00:13]}  Nc6 {[%clk 0:00:05]} 64. Rb7+ {[%clk 0:00:13]}  Kxc5 {[%clk 0:00:04]} 65. Rc7 {[%clk 0:00:14]}  Kb6 {[%clk 0:00:04]} 66. Rc8 {[%clk 0:00:14]}  Nb4 {[%clk 0:00:04]} 67. Rb8+ {[%clk 0:00:12]}  Ka5 {[%clk 0:00:04]} 68. Rb7 {[%clk 0:00:13]}  Nxa6 {[%clk 0:00:04]} 69. Rxa7 {[%clk 0:00:13]}  Bxa7 {[%clk 0:00:04]} 70. Kxg3 {[%clk 0:00:13]}  Kb5 {[%clk 0:00:05]} 71. Kf4 {[%clk 0:00:14]}  Kc4 {[%clk 0:00:06]} 72. Ke5 {[%clk 0:00:15]}  Kd3 {[%clk 0:00:06]} 73. Kd5 {[%clk 0:00:15]}  Nb4+ {[%clk 0:00:07]} 74. Ke5 {[%clk 0:00:15]}  Bd4+ {[%clk 0:00:08]} 75. Ke6 {[%clk 0:00:15]}  Ke4 {[%clk 0:00:08]} 76. Kd6 {[%clk 0:00:15]}  Kd3 {[%clk 0:00:06]} 77. Ke6 {[%clk 0:00:14]}  Kc4 {[%clk 0:00:06]} 78. Kd6 {[%clk 0:00:15]}  Nd5 {[%clk 0:00:06]} 79. Ke6 {[%clk 0:00:15]}  Nf4+ {[%clk 0:00:06]} 80. Kf5 {[%clk 0:00:15]}  Be3 {[%clk 0:00:07]} 81. Ke4 {[%clk 0:00:15]}  Bd2 {[%clk 0:00:06]} 82. Ke5 {[%clk 0:00:16]}  Kc5 {[%clk 0:00:06]} 83. Ke4 {[%clk 0:00:16]}  Kd6 {[%clk 0:00:05]} 84. Kd4 {[%clk 0:00:16]}  Bb4 {[%clk 0:00:04]} 85. Ke4 {[%clk 0:00:16]}  Nd5 {[%clk 0:00:04]} 86. Kf5 {[%clk 0:00:17]}  Bd2 {[%clk 0:00:04]} 87. Ke4 {[%clk 0:00:17]}  Ke6 {[%clk 0:00:03]} 88. Kd4 {[%clk 0:00:17]}  Bc3+ {[%clk 0:00:04]} 89. Ke4 {[%clk 0:00:18]}  Bf6 {[%clk 0:00:03]} 90. Kd3 {[%clk 0:00:17]}  Ke5 {[%clk 0:00:04]} 91. Kc4 {[%clk 0:00:17]}  Ke4 {[%clk 0:00:04]} 92. Kc5 {[%clk 0:00:17]}  Be5 {[%clk 0:00:04]} 93. Kc6 {[%clk 0:00:17]}  Nf6 {[%clk 0:00:03]} 94. Kc5 {[%clk 0:00:17]}  Bd4+ {[%clk 0:00:03]} 95. Kc4 {[%clk 0:00:17]}  Nd5 {[%clk 0:00:03]} 96. Kb5 {[%clk 0:00:17]}  Ne7 {[%clk 0:00:02]} 97. Kc4 {[%clk 0:00:17]}  Nc6 {[%clk 0:00:01]} 98. Kb5 {[%clk 0:00:17]}  Kd5 {[%clk 0:00:02]} 99. Ka6 {[%clk 0:00:15]}  Bc3 {[%clk 0:00:03]} 100. Kb6 {[%clk 0:00:14]}  Bd2 {[%clk 0:00:03]} 101. Kc7 {[%clk 0:00:14]}  Bf4+ {[%clk 0:00:03]} 102. Kd7 {[%clk 0:00:14]}  Ne5+ {[%clk 0:00:04]} 103. Ke7 {[%clk 0:00:15]}  Bg5+ {[%clk 0:00:04]} 104. Ke8 {[%clk 0:00:13]}  Kd6 {[%clk 0:00:04]} 105. Kf8 {[%clk 0:00:12]}  Bf6 {[%clk 0:00:04]} 106. Kg8 {[%clk 0:00:12]}  Ke6 {[%clk 0:00:04]} 107. Kf8 {[%clk 0:00:12]}  Ng6+ {[%clk 0:00:04]} 108. Ke8 {[%clk 0:00:12]}  Ne5 {[%clk 0:00:04]} 109. Kf8 {[%clk 0:00:12]}  Bg5 {[%clk 0:00:05]} 110. Ke8 {[%clk 0:00:11]}  Nd7 {[%clk 0:00:05]} 1/2-1/2


[Site "https://www.chess.com"]

[Event "Titled Tuesday Blitz July 05 Late 2022"]
[White "Averjanov, Alexey"]
[Black "Nazaretyan, Tigran"]
[WhiteFideId "14109867"]
[BlackFideId "24162345"]
[WhiteElo "2694"]
[BlackElo "2179"]
[Result "0-1"]
[Round "11"]
[TimeControl "180+1"]
[Date "2022.07.05"]
[WhiteClock "0:01:51"]
[BlackClock "0:02:17"]

1. d4 {[%clk 0:03:00]}  Nf6 {[%clk 0:02:58]} 2. c4 {[%clk 0:03:00]}  c5 {[%clk 0:02:57]} 3. d5 {[%clk 0:03:00]}  b5 {[%clk 0:02:55]} 4. Nf3 {[%clk 0:03:00]}  g6 {[%clk 0:02:54]} 5. a4 {[%clk 0:03:00]}  b4 {[%clk 0:02:52]} 6. b3 {[%clk 0:02:59]}  Bg7 {[%clk 0:02:52]} 7. Bb2 {[%clk 0:03:00]}  O-O {[%clk 0:02:51]} 8. Nbd2 {[%clk 0:03:00]}  e6 {[%clk 0:02:51]} 9. e4 {[%clk 0:02:59]}  exd5 {[%clk 0:02:51]} 10. exd5 {[%clk 0:03:00]}  Re8+ {[%clk 0:02:51]} 11. Be2 {[%clk 0:03:00]}  Nxd5 {[%clk 0:02:47]} 12. Bxg7 {[%clk 0:02:56]}  Nf4 {[%clk 0:02:47]} 13. Bh6 {[%clk 0:02:50]}  Nxe2 {[%clk 0:02:37]} 14. Kf1 {[%clk 0:02:49]}  d5 {[%clk 0:02:26]} 15. Qc2 {[%clk 0:02:46]}  Bf5 {[%clk 0:02:25]} 16. Qb2 {[%clk 0:02:45]}  d4 {[%clk 0:02:24]} 17. Ne1 {[%clk 0:01:51]}  Qh4 {[%clk 0:02:17]} 0-1


[Site "https://www.chess.com"]

[Event "Titled Tuesday Blitz July 05 Late 2022"]
[White "Bobadilla Viera, Jorge Samuel"]
[Black "Melikyan, Gnel"]
[WhiteFideId "3906353"]
[BlackFideId "54109990"]
[WhiteElo "2202"]
[BlackElo "1772"]
[Result "0-1"]
[Round "11"]
[TimeControl "180+1"]
[Date "2022.07.05"]
[WhiteClock "0:02:11"]
[BlackClock "0:02:04"]

1. e4 {[%clk 0:02:55]}  e5 {[%clk 0:02:59]} 2. Nf3 {[%clk 0:02:54]}  Nc6 {[%clk 0:03:00]} 3. Bc4 {[%clk 0:02:55]}  Bc5 {[%clk 0:02:59]} 4. O-O {[%clk 0:02:55]}  Nf6 {[%clk 0:02:58]} 5. d3 {[%clk 0:02:55]}  d6 {[%clk 0:02:58]} 6. c3 {[%clk 0:02:54]}  O-O {[%clk 0:02:58]} 7. b4 {[%clk 0:02:47]}  Bb6 {[%clk 0:02:57]} 8. a4 {[%clk 0:02:48]}  a5 {[%clk 0:02:55]} 9. b5 {[%clk 0:02:46]}  Ne7 {[%clk 0:02:55]} 10. Re1 {[%clk 0:02:44]}  Ng6 {[%clk 0:02:54]} 11. Nbd2 {[%clk 0:02:44]}  Ng4 {[%clk 0:02:50]} 12. d4 {[%clk 0:02:42]}  Qf6 {[%clk 0:02:43]} 13. Nf1 {[%clk 0:02:29]}  Nh4 {[%clk 0:02:23]} 14. Nxh4 {[%clk 0:02:14]}  Qxf2+ {[%clk 0:02:21]} 15. Kh1 {[%clk 0:02:14]}  Qxh4 {[%clk 0:02:20]} 16. Kg1 {[%clk 0:02:11]}  exd4 {[%clk 0:02:18]} 17. cxd4 {[%clk 0:02:11]}  Qf2+ {[%clk 0:02:04]} 18. Kh1 {[%clk 0:02:11]}  Bxd4 {[%clk 0:02:04]} 0-1


[Site "https://www.chess.com"]

[Event "Titled Tuesday Blitz July 05 Late 2022"]
[White "Carrasco Miranda, Andres"]
[Black "Rizzo, Tobias"]
[WhiteFideId "3405990"]
[BlackFideId "30942691"]
[WhiteElo "2177"]
[BlackElo "2319"]
[Result "0-1"]
[Round "11"]
[TimeControl "180+1"]
[Date "2022.07.06"]
[WhiteClock "0:00:31"]
[BlackClock "0:00:04"]

1. d4 {[%clk 0:03:00]}  Nf6 {[%clk 0:02:59]} 2. c4 {[%clk 0:03:00]}  g6 {[%clk 0:02:59]} 3. g3 {[%clk 0:03:00]}  Bg7 {[%clk 0:02:59]} 4. Bg2 {[%clk 0:03:01]}  c6 {[%clk 0:03:00]} 5. e4 {[%clk 0:02:58]}  d5 {[%clk 0:02:59]} 6. cxd5 {[%clk 0:02:58]}  cxd5 {[%clk 0:02:59]} 7. e5 {[%clk 0:02:59]}  Ne4 {[%clk 0:02:59]} 8. Nc3 {[%clk 0:02:59]}  Nxc3 {[%clk 0:02:57]} 9. bxc3 {[%clk 0:03:00]}  O-O {[%clk 0:02:56]} 10. Ne2 {[%clk 0:03:00]}  Nc6 {[%clk 0:02:55]} 11. O-O {[%clk 0:02:59]}  Rb8 {[%clk 0:02:36]} 12. Nf4 {[%clk 0:02:58]}  e6 {[%clk 0:02:36]} 13. h4 {[%clk 0:02:57]}  Na5 {[%clk 0:02:32]} 14. h5 {[%clk 0:02:56]}  b5 {[%clk 0:02:29]} 15. h6 {[%clk 0:02:53]}  Bh8 {[%clk 0:02:21]} 16. Nh3 {[%clk 0:02:49]}  Ba6 {[%clk 0:02:14]} 17. Bg5 {[%clk 0:02:41]}  Qc7 {[%clk 0:02:14]} 18. Rc1 {[%clk 0:02:23]}  Nc4 {[%clk 0:02:13]} 19. Nf4 {[%clk 0:02:13]}  Qd7 {[%clk 0:02:02]} 20. Qg4 {[%clk 0:02:09]}  Bc8 {[%clk 0:01:43]} 21. Bh3 {[%clk 0:01:49]}  Rb6 {[%clk 0:01:36]} 22. Nh5 {[%clk 0:01:43]}  f5 {[%clk 0:01:17]} 23. exf6 {[%clk 0:01:37]}  gxh5 {[%clk 0:01:05]} 24. Qxh5 {[%clk 0:01:37]}  Qf7 {[%clk 0:01:04]} 25. Qg4 {[%clk 0:01:32]}  Qg6 {[%clk 0:01:02]} 26. Rfe1 {[%clk 0:01:22]}  Bxf6 {[%clk 0:00:50]} 27. f4 {[%clk 0:01:18]}  Bxg5 {[%clk 0:00:47]} 28. fxg5 {[%clk 0:01:19]}  e5 {[%clk 0:00:40]} 29. Qh4 {[%clk 0:01:08]}  Bxh3 {[%clk 0:00:39]} 30. Qxh3 {[%clk 0:01:09]}  Qxg5 {[%clk 0:00:24]} 31. Rf1 {[%clk 0:01:09]}  Rbf6 {[%clk 0:00:15]} 32. Rxf6 {[%clk 0:01:07]}  Qxf6 {[%clk 0:00:16]} 33. Qg4+ {[%clk 0:00:50]}  Kh8 {[%clk 0:00:14]} 34. Rc2 {[%clk 0:00:46]}  Ne3 {[%clk 0:00:12]} 35. Qg7+ {[%clk 0:00:46]}  Qxg7 {[%clk 0:00:12]} 36. hxg7+ {[%clk 0:00:46]}  Kxg7 {[%clk 0:00:13]} 37. Re2 {[%clk 0:00:47]}  exd4 {[%clk 0:00:12]} 38. cxd4 {[%clk 0:00:48]}  Nf5 {[%clk 0:00:11]} 39. Re5 {[%clk 0:00:46]}  Nxd4 {[%clk 0:00:08]} 40. Rxd5 {[%clk 0:00:46]}  Ne2+ {[%clk 0:00:06]} 41. Kg2 {[%clk 0:00:44]}  Nc3 {[%clk 0:00:07]} 42. Rd7+ {[%clk 0:00:43]}  Rf7 {[%clk 0:00:07]} 43. Rd3 {[%clk 0:00:39]}  Nxa2 {[%clk 0:00:06]} 44. g4 {[%clk 0:00:37]}  a5 {[%clk 0:00:05]} 45. g5 {[%clk 0:00:38]}  a4 {[%clk 0:00:05]} 46. g6 {[%clk 0:00:38]}  hxg6 {[%clk 0:00:04]} 47. Rd6 {[%clk 0:00:39]}  b4 {[%clk 0:00:04]} 48. Rb6 {[%clk 0:00:40]}  b3 {[%clk 0:00:05]} 49. Ra6 {[%clk 0:00:40]}  b2 {[%clk 0:00:04]} 50. Rc6 {[%clk 0:00:41]}  b1=Q {[%clk 0:00:04]} 51. Rc4 {[%clk 0:00:30]}  Qf1+ {[%clk 0:00:03]} 52. Kg3 {[%clk 0:00:30]}  Qxc4 {[%clk 0:00:03]} 53. Kh3 {[%clk 0:00:30]}  Rf3+ {[%clk 0:00:03]} 54. Kg2 {[%clk 0:00:31]}  Qe2+ {[%clk 0:00:03]} 55. Kg1 {[%clk 0:00:31]}  Rf1# {[%clk 0:00:04]} 0-1


[Site "https://www.chess.com"]

[Event "Titled Tuesday Blitz July 05 Late 2022"]
[White "Deac, Bogdan-Daniel"]
[Black "So, Wesley"]
[WhiteFideId "1226380"]
[BlackFideId "5202213"]
[WhiteElo "2648"]
[BlackElo "2763"]
[Result "0-1"]
[Round "11"]
[TimeControl "180+1"]
[Date "2022.07.05"]
[WhiteClock "0:00:01"]
[BlackClock "0:00:04"]

1. d4 {[%clk 0:03:00]}  Nf6 {[%clk 0:02:58]} 2. c4 {[%clk 0:03:01]}  e6 {[%clk 0:02:58]} 3. Nf3 {[%clk 0:03:02]}  d5 {[%clk 0:02:58]} 4. Nc3 {[%clk 0:03:02]}  Bb4 {[%clk 0:02:55]} 5. Qa4+ {[%clk 0:02:59]}  Nc6 {[%clk 0:02:55]} 6. e3 {[%clk 0:02:59]}  O-O {[%clk 0:02:55]} 7. Bd2 {[%clk 0:03:00]}  Re8 {[%clk 0:02:46]} 8. Qc2 {[%clk 0:02:54]}  a6 {[%clk 0:02:38]} 9. Rd1 {[%clk 0:02:40]}  Bd6 {[%clk 0:02:24]} 10. a3 {[%clk 0:02:34]}  h6 {[%clk 0:02:09]} 11. h3 {[%clk 0:02:19]}  Bd7 {[%clk 0:02:01]} 12. Be2 {[%clk 0:01:08]}  dxc4 {[%clk 0:02:01]} 13. Bxc4 {[%clk 0:01:07]}  b5 {[%clk 0:02:01]} 14. Bb3 {[%clk 0:00:34]}  e5 {[%clk 0:01:50]} 15. O-O {[%clk 0:00:21]}  e4 {[%clk 0:01:36]} 16. Nh2 {[%clk 0:00:20]}  Be6 {[%clk 0:00:42]} 17. Bxe6 {[%clk 0:00:10]}  Rxe6 {[%clk 0:00:43]} 18. Bc1 {[%clk 0:00:10]}  Ne7 {[%clk 0:00:41]} 19. Ng4 {[%clk 0:00:10]}  Ned5 {[%clk 0:00:29]} 20. Nxf6+ {[%clk 0:00:09]}  Nxf6 {[%clk 0:00:30]} 21. d5 {[%clk 0:00:09]}  Re5 {[%clk 0:00:29]} 22. b4 {[%clk 0:00:07]}  Qd7 {[%clk 0:00:24]} 23. Bb2 {[%clk 0:00:06]}  Rg5 {[%clk 0:00:24]} 24. Kh1 {[%clk 0:00:06]}  Qf5 {[%clk 0:00:23]} 25. Qe2 {[%clk 0:00:05]}  Qe5 {[%clk 0:00:18]} 26. g3 {[%clk 0:00:04]}  Qf5 {[%clk 0:00:18]} 27. Kg2 {[%clk 0:00:04]}  Re8 {[%clk 0:00:13]} 28. Rh1 {[%clk 0:00:04]}  h5 {[%clk 0:00:13]} 29. Rd4 {[%clk 0:00:04]}  Be5 {[%clk 0:00:12]} 30. Rdd1 {[%clk 0:00:04]}  Qg6 {[%clk 0:00:12]} 31. Kf1 {[%clk 0:00:03]}  Rf5 {[%clk 0:00:12]} 32. Ke1 {[%clk 0:00:03]}  Rf3 {[%clk 0:00:08]} 33. Rg1 {[%clk 0:00:02]}  h4 {[%clk 0:00:08]} 34. g4 {[%clk 0:00:03]}  Rxh3 {[%clk 0:00:08]} 35. g5 {[%clk 0:00:03]}  Rf3 {[%clk 0:00:07]} 36. Qf1 {[%clk 0:00:03]}  Nh7 {[%clk 0:00:06]} 37. Qg2 {[%clk 0:00:02]}  h3 {[%clk 0:00:06]} 38. Qh1 {[%clk 0:00:02]}  Nxg5 {[%clk 0:00:06]} 39. Nxe4 {[%clk 0:00:01]}  Qxe4 {[%clk 0:00:04]} 0-1


[Site "https://www.chess.com"]

[Event "Titled Tuesday Blitz July 05 Late 2022"]
[White "Diaz Perez, Michel Alejandro"]
[Black "Ferreira, Vitor Hugo Vieira"]
[WhiteFideId "3517179"]
[BlackFideId "2119765"]
[WhiteElo "2313"]
[BlackElo "2168"]
[Result "1-0"]
[Round "11"]
[TimeControl "180+1"]
[Date "2022.07.05"]
[WhiteClock "0:00:05"]
[BlackClock "0:00:10"]

1. d4 {[%clk 0:02:55]}  d5 {[%clk 0:02:59]} 2. c4 {[%clk 0:02:53]}  dxc4 {[%clk 0:02:58]} 3. e3 {[%clk 0:02:52]}  Nf6 {[%clk 0:02:58]} 4. Bxc4 {[%clk 0:02:48]}  e6 {[%clk 0:02:59]} 5. Nf3 {[%clk 0:02:48]}  a6 {[%clk 0:02:58]} 6. O-O {[%clk 0:02:46]}  c5 {[%clk 0:02:59]} 7. b3 {[%clk 0:02:44]}  Nc6 {[%clk 0:02:59]} 8. Bb2 {[%clk 0:02:43]}  b5 {[%clk 0:02:51]} 9. Be2 {[%clk 0:02:42]}  Bb7 {[%clk 0:02:51]} 10. a4 {[%clk 0:02:39]}  b4 {[%clk 0:02:45]} 11. Nbd2 {[%clk 0:02:37]}  cxd4 {[%clk 0:02:43]} 12. Nxd4 {[%clk 0:02:37]}  Nxd4 {[%clk 0:02:43]} 13. Bxd4 {[%clk 0:02:38]}  Bd6 {[%clk 0:02:41]} 14. Nc4 {[%clk 0:02:35]}  Be7 {[%clk 0:02:31]} 15. Nb6 {[%clk 0:02:28]}  Rb8 {[%clk 0:02:30]} 16. a5 {[%clk 0:02:28]}  Nd5 {[%clk 0:02:29]} 17. Be5 {[%clk 0:02:08]}  Nc3 {[%clk 0:02:15]} 18. Qc2 {[%clk 0:02:01]}  Be4 {[%clk 0:01:47]} 19. Qb2 {[%clk 0:01:56]}  Rb7 {[%clk 0:01:27]} 20. Bxa6 {[%clk 0:01:47]}  Rxb6 {[%clk 0:01:23]} 21. axb6 {[%clk 0:01:46]}  Qxb6 {[%clk 0:01:24]} 22. Bxc3 {[%clk 0:01:42]}  bxc3 {[%clk 0:01:22]} 23. Qxc3 {[%clk 0:01:43]}  O-O {[%clk 0:01:16]} 24. Ra4 {[%clk 0:01:01]}  Bc6 {[%clk 0:01:04]} 25. Rg4 {[%clk 0:01:00]}  g6 {[%clk 0:00:58]} 26. Bc4 {[%clk 0:01:01]}  Bd7 {[%clk 0:00:44]} 27. Rd1 {[%clk 0:00:55]}  Bc8 {[%clk 0:00:39]} 28. Qd2 {[%clk 0:00:42]}  Bb4 {[%clk 0:00:32]} 29. Qc2 {[%clk 0:00:38]}  Kg7 {[%clk 0:00:18]} 30. Qb2+ {[%clk 0:00:32]}  Kg8 {[%clk 0:00:18]} 31. Qf6 {[%clk 0:00:31]}  Qa5 {[%clk 0:00:15]} 32. Rh4 {[%clk 0:00:18]}  Bc3 {[%clk 0:00:13]} 33. Qf3 {[%clk 0:00:18]}  Bg7 {[%clk 0:00:13]} 34. Rf4 {[%clk 0:00:18]}  Qc7 {[%clk 0:00:12]} 35. h4 {[%clk 0:00:18]}  Bb7 {[%clk 0:00:12]} 36. Qg4 {[%clk 0:00:17]}  h5 {[%clk 0:00:12]} 37. Qg5 {[%clk 0:00:17]}  Kh7 {[%clk 0:00:12]} 38. Rfd4 {[%clk 0:00:16]}  Bxd4 {[%clk 0:00:12]} 39. Rxd4 {[%clk 0:00:17]}  Qc6 {[%clk 0:00:12]} 40. f3 {[%clk 0:00:15]}  Qb6 {[%clk 0:00:10]} 41. Kh2 {[%clk 0:00:13]}  Qc7+ {[%clk 0:00:10]} 42. Qg3 {[%clk 0:00:14]}  Qxg3+ {[%clk 0:00:09]} 43. Kxg3 {[%clk 0:00:14]}  Kg7 {[%clk 0:00:09]} 44. Rd7 {[%clk 0:00:14]}  Bc6 {[%clk 0:00:09]} 45. Rc7 {[%clk 0:00:14]}  Bd5 {[%clk 0:00:09]} 46. Bxd5 {[%clk 0:00:13]}  exd5 {[%clk 0:00:10]} 47. Rb7 {[%clk 0:00:11]}  Rc8 {[%clk 0:00:09]} 48. Rb4 {[%clk 0:00:12]}  Rc3 {[%clk 0:00:09]} 49. Kf4 {[%clk 0:00:12]}  Kf6 {[%clk 0:00:09]} 50. g4 {[%clk 0:00:12]}  hxg4 {[%clk 0:00:09]} 51. fxg4 {[%clk 0:00:13]}  Rc1 {[%clk 0:00:08]} 52. g5+ {[%clk 0:00:12]}  Ke6 {[%clk 0:00:08]} 53. Rb6+ {[%clk 0:00:12]}  Ke7 {[%clk 0:00:08]} 54. Ke5 {[%clk 0:00:12]}  Rh1 {[%clk 0:00:07]} 55. Rb7+ {[%clk 0:00:11]}  Kf8 {[%clk 0:00:06]} 56. b4 {[%clk 0:00:11]}  Rxh4 {[%clk 0:00:06]} 57. Kf6 {[%clk 0:00:12]}  Ke8 {[%clk 0:00:05]} 58. Rb8+ {[%clk 0:00:11]}  Kd7 {[%clk 0:00:05]} 59. Kxf7 {[%clk 0:00:11]}  Re4 {[%clk 0:00:05]} 60. Kxg6 {[%clk 0:00:10]}  Rxe3 {[%clk 0:00:05]} 61. Kf5 {[%clk 0:00:07]}  d4 {[%clk 0:00:06]} 62. Rb5 {[%clk 0:00:06]}  Kc6 {[%clk 0:00:04]} 63. Rc5+ {[%clk 0:00:06]}  Kd6 {[%clk 0:00:05]} 64. g6 {[%clk 0:00:06]}  d3 {[%clk 0:00:05]} 65. Rc1 {[%clk 0:00:07]}  Kd5 {[%clk 0:00:04]} 66. g7 {[%clk 0:00:05]}  Rg3 {[%clk 0:00:04]} 67. Kf6 {[%clk 0:00:06]}  Kd4 {[%clk 0:00:04]} 68. b5 {[%clk 0:00:06]}  d2 {[%clk 0:00:05]} 69. Rd1 {[%clk 0:00:06]}  Kd3 {[%clk 0:00:05]} 70. Kf7 {[%clk 0:00:05]}  Rf3+ {[%clk 0:00:05]} 71. Ke8 {[%clk 0:00:05]}  Re3+ {[%clk 0:00:06]} 72. Kf8 {[%clk 0:00:05]}  Rf3+ {[%clk 0:00:06]} 73. Kg8 {[%clk 0:00:05]}  Rf5 {[%clk 0:00:05]} 74. b6 {[%clk 0:00:05]}  Rb5 {[%clk 0:00:03]} 75. Kh8 {[%clk 0:00:04]}  Rh5+ {[%clk 0:00:02]} 76. Kg8 {[%clk 0:00:04]}  Rb5 {[%clk 0:00:03]} 77. Kh7 {[%clk 0:00:04]}  Rh5+ {[%clk 0:00:03]} 78. Kg6 {[%clk 0:00:04]}  Rb5 {[%clk 0:00:02]} 79. g8=Q {[%clk 0:00:03]}  Rxb6+ {[%clk 0:00:03]} 80. Kh7 {[%clk 0:00:03]}  Rb4 {[%clk 0:00:03]} 81. Rxd2+ {[%clk 0:00:03]}  Kxd2 {[%clk 0:00:04]} 82. Qd5+ {[%clk 0:00:04]}  Kc3 {[%clk 0:00:05]} 83. Qc5+ {[%clk 0:00:04]}  Rc4 {[%clk 0:00:06]} 84. Qa5+ {[%clk 0:00:04]}  Kb3 {[%clk 0:00:07]} 85. Kg6 {[%clk 0:00:05]}  Ra4 {[%clk 0:00:07]} 86. Qb5+ {[%clk 0:00:05]}  Rb4 {[%clk 0:00:07]} 87. Qd5+ {[%clk 0:00:06]}  Kc3 {[%clk 0:00:08]} 88. Kf5 {[%clk 0:00:05]}  Rd4 {[%clk 0:00:09]} 89. Qc5+ {[%clk 0:00:05]}  Kd3 {[%clk 0:00:10]} 90. Ke5 {[%clk 0:00:05]}  Rf4 {[%clk 0:00:10]} 91. Kxf4 {[%clk 0:00:05]} 1-0


[Site "https://www.chess.com"]